bitfinex/quotes_BTCUSD_20240602
["timestamp","ask_amount","ask_price","bid_price","bid_amount"]
[1717329385425,0.46003633,68296.0,68295.0,2.9364047]
[1717329385654,0.46003633,68296.0,68295.0,2.37913335]
[1717329385917,0.46003633,68296.0,68295.0,1.66545999]
[1717329386134,0.46003633,68296.0,68295.0,1.59477041]
[1717329386603,0.46003633,68296.0,68295.0,1.63177041]
[1717329387004,0.46003633,68296.0,68295.0,1.58870244]
[1717329387178,0.46203633,68296.0,68295.0,0.40110944]
[1717329387419,0.46203633,68296.0,68295.0,0.37174944]
[1717329387629,0.46203633,68296.0,68295.0,0.21977791]
[1717329387849,0.65233633,68296.0,68295.0,0.21977791]
[1717329388502,0.65233633,68296.0,68295.0,0.074]
[1717329388649,0.65033633,68296.0,68295.0,0.037]
[1717329389066,0.65033633,68296.0,68283.0,0.45201391]
[1717329389242,0.65033633,68296.0,68295.0,0.017]
[1717329389446,0.79675733,68296.0,68295.0,0.017]
[1717329389628,0.65033633,68296.0,68284.0,0.14577791]
[1717329390029,0.65033633,68296.0,68295.0,0.01]
[1717329390249,0.75233633,68296.0,68295.0,0.047]
[1717329390655,0.75233633,68296.0,68295.0,0.024]
[1717329390656,0.75033633,68296.0,68295.0,0.024]
[1717329390886,0.75033633,68296.0,68284.0,0.14577791]
[1717329390887,0.1,68293.0,68284.0,0.14577791]
[1717329391097,0.1,68292.0,68284.0,0.18277791]
[1717329391507,0.72522528,68296.0,68284.0,0.18277791]
[1717329391508,0.246438,68288.0,68284.0,0.14577791]
[1717329391730,0.4954,68287.0,68283.0,0.01468019]
[1717329391949,0.146447,68284.0,68283.0,0.01468019]
[1717329392156,0.246447,68284.0,68283.0,0.01468019]
[1717329392354,0.146464,68276.0,68275.0,0.01468019]
[1717329392988,0.641864,68276.0,68275.0,0.01468019]
[1717329393191,0.832164,68276.0,68275.0,0.01468019]
[1717329394191,0.832164,68276.0,68275.0,0.02868019]
[1717329394976,0.849164,68276.0,68275.0,0.02968019]
[1717329395180,0.849164,68276.0,68251.0,0.54]
[1717329395181,0.1,68264.0,68251.0,0.54]
[1717329395398,0.1,68261.0,68252.0,0.14577791]
[1717329395607,0.1,68260.0,68252.0,0.14577791]
[1717329395816,0.1,68258.0,68252.0,0.14577791]
[1717329396041,0.3954,68273.0,68254.0,0.00999999]
[1717329396252,0.018,68276.0,68263.0,0.14577791]
[1717329396253,0.017,68276.0,68263.0,0.14577791]
[1717329396459,0.1,68274.0,68263.0,0.14577791]
[1717329396661,0.5857,68270.0,68263.0,0.14577791]
[1717329397495,0.5857,68270.0,68263.0,0.16877791]
[1717329397700,0.146481,68268.0,68263.0,0.023]
[1717329397922,0.146481,68268.0,68252.0,0.00999999]
[1717329397923,0.146484,68267.0,68252.0,0.1]
[1717329398145,0.1,68268.0,68253.0,0.14577791]
[1717329398356,0.1,68266.0,68263.0,0.009]
[1717329398562,0.14649,68264.0,68263.0,0.009]
[1717329398970,0.14649,68264.0,68263.0,0.046]
[1717329399586,0.24649,68264.0,68263.0,0.046]
[1717329399785,0.24649,68264.0,68253.0,0.14577791]
[1717329399991,0.1,68264.0,68253.0,0.14577791]
[1717329400118,0.1,68263.0,68253.0,0.14577791]
[1717329400302,0.1,68263.0,68252.0,0.037]
[1717329400303,0.1,68261.0,68252.0,0.037]
[1717329400527,0.1,68261.0,68251.0,0.01468019]
[1717329400751,0.5857,68255.0,68252.0,0.14577791]
[1717329400961,0.5857,68255.0,68251.0,0.01468019]
[1717329400962,0.732211,68255.0,68251.0,0.01468019]
[1717329401202,0.146515,68253.0,68251.0,0.01468019]
[1717329401747,0.146515,68253.0,68251.0,0.009]
[1717329402203,0.146515,68252.0,68251.0,0.009]
[1717329402953,0.146515,68252.0,68251.0,0.017]
[1717329403164,0.246515,68252.0,68251.0,0.008]
[1717329403361,0.246515,68252.0,68251.0,0.034]
[1717329403560,0.146515,68252.0,68251.0,0.035]
[1717329403918,0.146515,68252.0,68251.0,0.001]
[1717329404039,0.246515,68252.0,68251.0,0.001]
[1717329404247,0.247515,68252.0,68251.0,0.001]
[1717329404695,0.5857,68255.0,68251.0,0.001]
[1717329404933,0.6204,68267.0,68252.0,0.14577791]
[1717329405081,0.14649,68264.0,68252.0,0.14577791]
[1717329405303,0.1,68266.0,68252.0,0.14577791]
[1717329405304,0.146499,68260.0,68252.0,0.14577791]
[1717329405963,0.292876,68289.0,68251.0,0.01]
[1717329405964,0.1,68275.0,68259.0,0.07288895]
[1717329406168,0.1,68278.0,68260.0,0.14577791]
[1717329406552,0.009,68264.0,68260.0,0.14577791]
[1717329407585,0.1,68270.0,68251.0,0.001]
[1717329407826,0.001,68264.0,68260.0,0.015]
[1717329408024,0.001,68264.0,68260.0,0.021]
[1717329408435,0.146492,68263.0,68260.0,0.021]
[1717329408862,0.146494,68262.0,68260.0,0.021]
[1717329409216,0.146494,68262.0,68260.0,0.006]
[1717329409415,0.146494,68262.0,68260.0,0.013]
[1717329409846,0.146494,68262.0,68252.0,0.14577791]
[1717329410431,0.07288895,68272.0,68252.0,0.14577791]
[1717329410432,0.1,68264.0,68252.0,0.14577791]
[1717329410611,0.146502,68259.0,68252.0,0.14577791]
[1717329410819,0.108,68262.0,68249.0,0.01468019]
[1717329411032,0.146509,68255.0,68249.0,0.1604581]
[1717329411235,0.146509,68255.0,68249.0,0.01468019]
[1717329411441,0.1,68259.0,68252.0,0.022]
[1717329411660,0.146509,68255.0,68252.0,0.02168081]
[1717329412313,0.146509,68255.0,68252.0,0.05168081]
[1717329412663,0.146509,68255.0,68252.0,0.02168081]
[1717329412868,0.146513,68253.0,68249.0,0.01468019]
[1717329413096,0.6204,68261.0,68249.0,0.01468019]
[1717329413097,0.001,68255.0,68252.0,0.009]
[1717329413704,0.146505,68257.0,68252.0,0.012]
[1717329413905,0.001,68255.0,68252.0,0.009]
[1717329414290,0.14751,68255.0,68252.0,0.009]
[1717329414503,0.14651,68255.0,68249.0,0.02368019]
[1717329414673,0.14651,68255.0,68252.0,0.002]
[1717329414880,0.146512,68254.0,68252.0,0.002]
[1717329415085,0.1,68264.0,68253.0,0.14577791]
[1717329415283,0.146504,68258.0,68253.0,0.14577791]
[1717329416120,0.146505,68257.0,68252.0,0.003]
[1717329416277,0.008,68255.0,68252.0,0.001]
[1717329416748,0.146505,68257.0,68249.0,0.01468019]
[1717329417122,0.146512,68254.0,68249.0,0.01468019]
[1717329417326,0.4155,68253.0,68252.0,0.003]
[1717329418465,0.562013,68253.0,68252.0,0.003]
[1717329419223,0.562013,68253.0,68249.0,0.01468019]
[1717329419546,0.570013,68253.0,68252.0,0.001]
[1717329419957,0.562013,68253.0,68249.0,0.01468019]
[1717329420160,0.4195,68253.0,68249.0,0.01468019]
[1717329420323,0.4305,68253.0,68252.0,0.001]
[1717329420540,0.015,68253.0,68252.0,0.001]
[1717329420747,0.008,68253.0,68249.0,0.01468019]
[1717329421151,0.008,68253.0,68249.0,0.01668019]
[1717329421391,0.008,68253.0,68250.0,0.15203115]
[1717329421609,0.008,68253.0,68249.0,0.01668019]
[1717329421808,0.008,68253.0,68250.0,0.16453201]
[1717329422031,0.008,68253.0,68250.0,0.0125]
[1717329422241,0.351407,68256.0,68251.0,0.15203216]
[1717329422377,0.351407,68256.0,68250.0,0.0125]
[1717329422593,0.351407,68256.0,68251.0,0.15203393]
[1717329422796,0.351407,68256.0,68250.0,0.0125]
[1717329422989,0.001,68253.0,68250.0,0.0125]
[1717329423216,0.001,68253.0,68251.0,0.15203487]
[1717329423417,0.001,68253.0,68250.0,0.0125]
[1717329423664,0.001,68253.0,68250.0,0.0185]
[1717329423905,0.146513,68253.0,68251.0,0.15203541]
[1717329424110,0.146513,68253.0,68250.0,0.0185]
[1717329424283,0.146513,68253.0,68251.0,0.15203548]
[1717329424488,0.005,68256.0,68252.0,0.14577791]
[1717329424692,0.564513,68254.0,68250.0,0.0185]
[1717329424897,0.564513,68254.0,68251.0,0.15203565]
[1717329425095,0.564513,68254.0,68250.0,0.0185]
[1717329425414,0.564513,68254.0,68251.0,0.15203563]
[1717329425582,0.564513,68254.0,68252.0,0.15203563]
[1717329425583,0.418,68254.0,68252.0,0.15203563]
[1717329425787,0.418,68254.0,68250.0,0.0185]
[1717329426037,0.005,68253.0,68251.0,0.15503486]
[1717329426184,0.005,68253.0,68252.0,0.15203486]
[1717329426984,0.146508,68256.0,68252.0,0.15203486]
[1717329427325,0.008,68254.0,68253.0,0.15203402]
[1717329428981,0.363301,68259.0,68253.0,0.15203402]
[1717329429210,0.363301,68259.0,68254.0,0.15203402]
[1717329429428,0.363301,68259.0,68248.0,0.02468018]
[1717329429429,0.008,68256.0,68255.0,0.15203402]
[1717329429936,0.146506,68257.0,68255.0,0.15203402]
[1717329430146,0.011,68254.0,68253.0,0.001]
[1717329430630,0.14651,68255.0,68253.0,0.15203287]
[1717329430848,0.14651,68255.0,68248.0,0.01468019]
[1717329431070,0.14651,68255.0,68249.0,0.29781213]
[1717329431288,0.14651,68255.0,68248.0,0.01468019]
[1717329431289,0.14651,68255.0,68250.0,0.15203422]
[1717329431495,0.14651,68255.0,68251.0,0.15203422]
[1717329431640,0.14651,68255.0,68252.0,0.15203422]
[1717329431849,0.14651,68255.0,68253.0,0.15203422]
[1717329432046,0.14651,68255.0,68248.0,0.01468019]
[1717329432254,0.14651,68255.0,68249.0,0.16103441]
[1717329432431,0.146511,68254.0,68250.0,0.15203441]
[1717329432635,0.146511,68254.0,68251.0,0.15203441]
[1717329432832,0.146511,68254.0,68253.0,0.001]
[1717329433069,0.146511,68254.0,68253.0,0.15303441]
[1717329433400,0.146511,68254.0,68253.0,0.15203441]
[1717329433593,0.146511,68254.0,68249.0,0.009]
[1717329433731,0.147511,68254.0,68250.0,0.15203631]
[1717329433936,0.147511,68254.0,68251.0,0.15203631]
[1717329434136,0.147511,68254.0,68252.0,0.15203631]
[1717329434137,0.146511,68254.0,68252.0,0.15203631]
[1717329434337,0.146511,68254.0,68249.0,0.009]
[1717329434535,0.157511,68254.0,68253.0,0.001]
[1717329434742,0.157511,68254.0,68253.0,0.15303641]
[1717329434949,0.015,68254.0,68253.0,0.15303641]
[1717329435171,0.161511,68254.0,68253.0,0.15303641]
[1717329435586,0.161511,68254.0,68253.0,0.15303631]
[1717329435787,0.004,68254.0,68253.0,0.15203631]
[1717329436007,0.418,68275.0,68260.0,0.00999999]
[1717329436214,0.2,68280.0,68261.0,0.15203631]
[1717329436215,0.146479,68269.0,68261.0,0.15203631]
[1717329436464,0.2,68279.0,68262.0,0.15201683]
[1717329436666,0.19348,68278.0,68262.0,0.31247493]
[1717329436900,0.19348,68278.0,68263.0,0.15201683]
[1717329437092,0.1,68277.0,68264.0,0.15201683]
[1717329437297,0.1,68276.0,68265.0,0.15201683]
[1717329437537,0.1,68276.0,68266.0,0.15201683]
[1717329437746,0.1,68276.0,68262.0,0.1604581]
[1717329437928,0.146477,68270.0,68263.0,0.15200722]
[1717329438275,0.146477,68270.0,68264.0,0.15200722]
[1717329438443,0.146477,68270.0,68265.0,0.15200722]
[1717329438650,0.146477,68270.0,68266.0,0.15200722]
[1717329438863,0.1,68274.0,68262.0,0.01568019]
[1717329439070,0.1,68272.0,68263.0,0.15200802]
[1717329439275,0.1,68275.0,68264.0,0.15200802]
[1717329439276,0.1,68269.0,68264.0,0.15200802]
[1717329439506,0.018,68276.0,68265.0,0.14677791]
[1717329439631,0.018,68276.0,68268.0,0.00999999]
[1717329439632,0.004,68270.0,68268.0,0.00999999]
[1717329439833,0.004,68270.0,68269.0,0.1557779]
[1717329440037,0.004,68270.0,68269.0,0.30777344]
[1717329440441,0.004,68270.0,68269.0,0.29777345]
[1717329441645,0.146458,68279.0,68269.0,0.30777344]
[1717329441850,0.146458,68279.0,68270.0,0.15199554]
[1717329442029,0.146458,68279.0,68271.0,0.15199554]
[1717329442263,0.146458,68279.0,68270.0,0.14577791]
[1717329442467,0.146458,68279.0,68271.0,0.15199083]
[1717329442676,0.146447,68284.0,68273.0,0.00999999]
[1717329442881,0.146447,68284.0,68274.0,0.14577791]
[1717329443087,0.146447,68284.0,68275.0,0.16198048]
[1717329443290,0.2168,68286.0,68277.0,0.00999999]
[1717329443473,0.146438,68289.0,68279.0,0.00999999]
[1717329443677,0.146438,68289.0,68279.0,0.1557779]
[1717329444045,0.146438,68289.0,68280.0,0.15197229]
[1717329444244,0.146438,68289.0,68279.0,0.1557779]
[1717329444450,0.012,68284.0,68280.0,0.14577791]
[1717329445349,0.012,68284.0,68280.0,0.14677791]
[1717329445993,0.012,68284.0,68280.0,0.14777791]
[1717329445994,0.008,68284.0,68280.0,0.14777791]
[1717329446148,0.008,68284.0,68280.0,0.004]
[1717329446601,0.146453,68281.0,68280.0,0.004]
[1717329447343,0.146453,68281.0,68280.0,0.002]
[1717329447522,0.246453,68281.0,68280.0,0.004]
[1717329447947,0.246453,68281.0,68280.0,0.002]
[1717329448160,0.873653,68281.0,68280.0,0.003]
[1717329449167,0.973653,68281.0,68280.0,0.003]
[1717329449421,1.51190321,68281.0,68280.0,0.003]
[1717329449621,1.51190321,68281.0,68260.0,0.01468019]
[1717329449622,0.146483,68268.0,68260.0,0.01468019]
[1717329450035,0.146484,68267.0,68260.0,0.01468019]
[1717329450456,0.146486,68266.0,68260.0,0.01468019]
[1717329451453,0.146486,68266.0,68260.0,0.01968019]
[1717329451851,0.146486,68266.0,68260.0,0.03268019]
[1717329452053,0.146486,68266.0,68260.0,0.04621815]
[1717329452261,0.146477,68270.0,68260.0,0.04621815]
[1717329452460,0.292907,68281.0,68269.0,0.07288895]
[1717329452845,0.146444,68286.0,68274.0,0.00999999]
[1717329453055,0.2138,68292.0,68277.0,0.00999999]
[1717329453056,0.1,68283.0,68277.0,0.00999999]
[1717329453384,0.1,68283.0,68278.0,0.1557779]
[1717329453496,0.1,68283.0,68278.0,0.29223691]
[1717329453699,0.1,68283.0,68278.0,0.14577791]
[1717329453898,0.2138,68292.0,68278.0,0.14577791]
[1717329453899,0.146434,68290.0,68278.0,0.14577791]
[1717329454125,0.036,68286.0,68278.0,0.14577791]
[1717329454561,0.146434,68290.0,68278.0,0.14577791]
[1717329454766,0.146434,68290.0,68279.0,0.00999999]
[1717329454979,0.146434,68290.0,68280.0,0.14577791]
[1717329454980,0.002,68283.0,68280.0,0.14577791]
[1717329455181,0.002,68283.0,68280.0,0.1557779]
[1717329455448,0.002,68283.0,68280.0,0.14577791]
[1717329455637,0.002,68283.0,68280.0,0.1557779]
[1717329456275,0.146434,68290.0,68280.0,0.1557779]
[1717329456479,0.146434,68290.0,68281.0,0.00999999]
[1717329456612,0.147434,68290.0,68282.0,0.14577791]
[1717329457184,0.146434,68290.0,68282.0,0.14577791]
[1717329457375,0.001,68283.0,68282.0,0.14577791]
[1717329457914,0.146425,68294.0,68282.0,0.14577791]
[1717329458328,0.146425,68294.0,68282.0,0.14677791]
[1717329458749,0.146425,68294.0,68282.0,0.15077791]
[1717329458950,0.146427,68293.0,68282.0,0.15077791]
[1717329459099,0.146427,68293.0,68282.0,0.14677791]
[1717329459422,0.146427,68293.0,68282.0,0.15077791]
[1717329459638,0.146427,68293.0,68282.0,0.14977791]
[1717329460162,0.146431,68292.0,68282.0,0.14977791]
[1717329460338,0.146432,68291.0,68282.0,0.14977791]
[1717329460578,0.146432,68291.0,68282.0,0.15177791]
[1717329460985,0.146432,68291.0,68282.0,0.14977791]
[1717329461178,0.46054523,68296.0,68282.0,0.004]
[1717329461179,0.146438,68288.0,68282.0,0.004]
[1717329461441,0.146438,68288.0,68282.0,0.006]
[1717329461638,0.146441,68287.0,68282.0,0.01]
[1717329462119,0.146441,68287.0,68282.0,0.002]
[1717329462323,0.2138,68288.0,68282.0,0.006]
[1717329462736,0.36024,68288.0,68282.0,0.004]
[1717329462896,0.146441,68287.0,68282.0,0.008]
[1717329463097,0.5054,68290.0,68282.0,0.006]
[1717329463098,0.551834,68290.0,68282.0,0.006]
[1717329463297,0.45090711,68290.0,68282.0,0.006]
[1717329463503,0.1,68289.0,68282.0,0.005]
[1717329463777,0.146445,68285.0,68282.0,0.005]
[1717329464095,0.146449,68283.0,68282.0,0.005]
[1717329464502,0.246449,68283.0,68282.0,0.005]
[1717329464908,0.1,68281.0,68274.0,0.01468019]
[1717329465106,0.07288895,68278.0,68274.0,0.01468019]
[1717329465326,0.1,68281.0,68264.0,0.058615]
[1717329465327,0.6483,68277.0,68264.0,0.058615]
[1717329465571,0.4439,68283.0,68265.0,0.30777136]
[1717329465848,0.4439,68283.0,68261.0,0.43733372]
[1717329465849,0.07288895,68275.0,68260.0,0.01716658]
[1717329466072,0.146481,68269.0,68260.0,0.01716658]
[1717329466286,0.146481,68269.0,68259.0,0.01468019]
[1717329466494,0.146481,68269.0,68261.0,0.15199899]
[1717329466660,0.1,68271.0,68259.0,0.03240607]
[1717329466661,0.146485,68267.0,68259.0,0.03240607]
[1717329467285,0.146485,68267.0,68260.0,0.03]
[1717329467807,0.01728889,68274.0,68260.0,0.03]
[1717329467808,0.146493,68263.0,68260.0,0.03]
[1717329468133,0.146493,68263.0,68259.0,0.01468019]
[1717329468800,0.146497,68261.0,68259.0,0.01468019]
[1717329469012,0.146497,68261.0,68260.0,0.022]
[1717329469219,0.146497,68261.0,68259.0,0.01468019]
[1717329469605,0.146497,68261.0,68259.0,0.01968019]
[1717329469805,0.146497,68261.0,68259.0,0.04568019]
[1717329470006,0.5439,68265.0,68259.0,0.04568019]
[1717329470007,0.146498,68260.0,68259.0,0.04568019]
[1717329470248,0.146498,68260.0,68259.0,0.01968019]
[1717329470449,0.2159378,68260.0,68259.0,0.01968019]
[1717329470771,0.146498,68260.0,68259.0,0.02068019]
[1717329471124,0.146498,68260.0,68259.0,0.01968019]
[1717329471348,0.246498,68260.0,68259.0,0.01968019]
[1717329471553,0.146498,68260.0,68259.0,0.01468019]
[1717329471752,0.146498,68260.0,68246.0,0.6311]
[1717329471753,0.146509,68255.0,68246.0,0.6311]
[1717329472076,0.146509,68255.0,68246.0,0.19]
[1717329472520,0.0690398,68260.0,68245.0,0.01468019]
[1717329472521,0.1,68257.0,68245.0,0.01468019]
[1717329472731,0.146528,68247.0,68245.0,0.01468019]
[1717329472931,0.1,68258.0,68245.0,0.01468019]
[1717329472932,0.146515,68253.0,68245.0,0.01468019]
[1717329473159,0.146515,68253.0,68246.0,0.018]
[1717329473369,0.146515,68253.0,68245.0,0.01468019]
[1717329473728,0.146524,68248.0,68245.0,0.01468019]
[1717329473928,0.007,68247.0,68245.0,0.01568019]
[1717329474315,0.350918,68251.0,68245.0,0.01468019]
[1717329474648,0.350918,68251.0,68246.0,0.015]
[1717329475230,0.350918,68251.0,68245.0,0.01568019]
[1717329475450,0.002,68247.0,68245.0,0.01568019]
[1717329475671,0.350918,68251.0,68245.0,0.01568019]
[1717329475895,0.14652,68250.0,68245.0,0.01568019]
[1717329476117,0.2044,68251.0,68245.0,0.01468019]
[1717329476118,0.2064,68251.0,68245.0,0.01468019]
[1717329476570,0.146521,68250.0,68245.0,0.01568019]
[1717329477017,0.146521,68250.0,68245.0,0.01468019]
[1717329477480,0.146521,68250.0,68245.0,0.01568019]
[1717329477801,0.146521,68250.0,68245.0,0.01468019]
[1717329478221,0.146523,68249.0,68245.0,0.01468019]
[1717329478894,0.146523,68249.0,68235.0,0.4411]
[1717329479104,0.146523,68249.0,68235.0,0.5968779]
[1717329479326,0.146523,68249.0,68245.0,0.001]
[1717329479491,0.148523,68249.0,68245.0,0.002]
[1717329479697,0.148523,68249.0,68235.0,0.58687791]
[1717329479878,0.148523,68249.0,68235.0,0.01468019]
[1717329479879,0.1,68245.0,68235.0,0.01468019]
[1717329480113,0.4439,68247.0,68235.0,0.03168019]
[1717329480114,0.5439,68247.0,68235.0,0.03168019]
[1717329480357,0.590427,68247.0,68235.0,0.03168019]
[1717329480506,0.146529,68246.0,68235.0,0.03168019]
[1717329480707,0.146531,68245.0,68235.0,0.01468019]
[1717329481153,0.148531,68245.0,68235.0,0.03168019]
[1717329481349,0.146535,68244.0,68235.0,0.03168019]
[1717329481550,0.0692435,68243.0,68235.0,0.03168019]
[1717329481897,0.0692435,68243.0,68235.0,0.035]
[1717329482005,0.146541,68241.0,68235.0,0.017]
[1717329482208,0.146542,68240.0,68235.0,0.017]
[1717329482410,0.146542,68240.0,68235.0,0.015]
[1717329482411,0.146544,68239.0,68235.0,0.015]
[1717329482615,0.246546,68238.0,68230.0,0.01468019]
[1717329482837,0.0692435,68243.0,68235.0,0.013]
[1717329482838,0.1,68241.0,68235.0,0.013]
[1717329483017,0.1,68239.0,68235.0,0.013]
[1717329483219,0.146549,68237.0,68230.0,0.01468019]
[1717329483418,0.0712435,68243.0,68230.0,0.01468019]
[1717329483419,0.14655,68236.0,68230.0,0.01468019]
[1717329483668,0.14655,68236.0,68235.0,0.015]
[1717329483839,0.1,68238.0,68235.0,0.015]
[1717329484047,0.14655,68236.0,68235.0,0.015]
[1717329484243,0.24655,68236.0,68235.0,0.008]
[1717329485066,0.146552,68235.0,68230.0,0.01468019]
[1717329485273,0.1,68235.0,68230.0,0.01468019]
[1717329485391,0.146557,68233.0,68230.0,0.01468019]
[1717329485829,0.146557,68233.0,68230.0,0.01568019]
[1717329486190,0.14656,68231.0,68230.0,0.01568019]
[1717329486402,0.14656,68231.0,68230.0,0.01468019]
[1717329486801,0.193836,68231.0,68230.0,0.01568019]
[1717329487010,0.14656,68231.0,68230.0,0.01568019]
[1717329487866,0.14656,68231.0,68230.0,0.01468019]
[1717329488678,0.14856,68231.0,68222.0,2.5]
[1717329489059,0.146563,68230.0,68222.0,2.5]
[1717329489500,0.146565,68229.0,68222.0,2.5]
[1717329490016,0.1,68231.0,68222.0,2.5]
[1717329490017,0.146568,68228.0,68222.0,2.5]
[1717329490228,0.146568,68228.0,68222.0,2.517]
[1717329490439,0.146568,68228.0,68222.0,2.535]
[1717329490572,0.419,68231.0,68222.0,2.518]
[1717329490573,0.146569,68227.0,68222.0,2.518]
[1717329490982,0.2129259,68227.0,68222.0,2.535]
[1717329491208,0.146573,68226.0,68222.0,2.535]
[1717329491686,0.102,68229.0,68222.0,2.535]
[1717329491996,0.146576,68224.0,68222.0,2.517]
[1717329492207,0.1,68226.0,68222.0,2.535]
[1717329492406,0.1,68225.0,68222.0,2.535]
[1717329492791,0.148572,68226.0,68222.0,2.535]
[1717329492960,0.146572,68226.0,68222.0,2.5]
[1717329493163,0.146572,68226.0,68222.0,2.517]
[1717329493364,0.002,68224.0,68222.0,2.517]
[1717329493587,0.146572,68226.0,68222.0,2.517]
[1717329493785,0.146572,68226.0,68222.0,2.5]
[1717329494324,0.156572,68226.0,68222.0,2.501]
[1717329494998,0.160572,68226.0,68222.0,2.501]
[1717329496004,0.0260572,68225.0,68222.0,2.501]
[1717329496204,0.160572,68226.0,68222.0,2.501]
[1717329496570,0.146578,68223.0,68222.0,2.501]
[1717329496943,0.146578,68223.0,68222.0,2.5]
[1717329497180,0.146578,68223.0,68222.0,2.501]
[1717329498036,0.146578,68223.0,68222.0,2.4587212]
[1717329498942,0.249578,68223.0,68222.0,2.4597212]
[1717329499142,0.149578,68223.0,68222.0,2.4587212]
[1717329499547,0.149578,68223.0,68222.0,2.4607212]
[1717329499548,0.169578,68223.0,68222.0,2.4607212]
[1717329499908,0.169578,68223.0,68222.0,2.4577212]
[1717329499909,0.146578,68223.0,68222.0,2.4577212]
[1717329500065,0.146578,68223.0,68222.0,2.4587212]
[1717329500279,0.176578,68223.0,68222.0,2.4607212]
[1717329500502,0.276578,68223.0,68222.0,2.4607212]
[1717329500908,0.3042358,68223.0,68222.0,2.4607212]
[1717329501134,0.176578,68223.0,68222.0,2.4607212]
[1717329501322,0.276578,68223.0,68222.0,2.4607212]
[1717329501522,0.176578,68223.0,68222.0,2.4607212]
[1717329501914,0.276578,68223.0,68222.0,2.4607212]
[1717329502143,0.273578,68223.0,68222.0,2.4597212]
[1717329502354,0.5943918,68223.0,68222.0,2.4597212]
[1717329502571,0.5973918,68223.0,68222.0,2.4617212]
[1717329503962,0.569734,68223.0,68222.0,2.4617212]
[1717329504402,0.780534,68223.0,68222.0,2.4617212]
[1717329506136,1.224334,68223.0,68222.0,2.4617212]
[1717329506601,1.124334,68223.0,68222.0,2.4617212]
[1717329506804,1.224334,68223.0,68222.0,2.4617212]
[1717329507674,1.3567674,68223.0,68222.0,2.4617212]
[1717329507853,1.224334,68223.0,68222.0,2.4617212]
[1717329512129,1.224334,68223.0,68222.0,2.46108102]
[1717329512981,1.324334,68223.0,68222.0,2.46108102]
[1717329513364,1.224334,68223.0,68222.0,2.46108102]
[1717329513596,1.35854998,68223.0,68222.0,2.46108102]
[1717329513802,1.43154998,68223.0,68222.0,2.45908102]
[1717329514015,1.46854998,68223.0,68222.0,2.46108102]
[1717329514779,1.46854998,68223.0,68222.0,2.45908102]
[1717329514780,1.46554998,68223.0,68222.0,2.45908102]
[1717329514988,1.49254998,68223.0,68222.0,2.46208102]
[1717329515402,1.45554998,68223.0,68222.0,2.46008102]
[1717329515606,1.51854998,68223.0,68222.0,2.46308102]
[1717329516537,1.384334,68223.0,68222.0,2.46308102]
[1717329517830,1.53011191,68223.0,68222.0,2.46308102]
[1717329518251,1.66511592,68223.0,68222.0,2.46308102]
[1717329519027,1.66511592,68223.0,68222.0,2.45708102]
[1717329519028,1.61111592,68223.0,68222.0,2.45708102]
[1717329519244,1.90427192,68223.0,68222.0,2.45708102]
[1717329519457,2.01407746,68223.0,68222.0,2.45708102]
[1717329519839,2.05007746,68223.0,68222.0,2.45708102]
[1717329520333,2.01407746,68223.0,68222.0,2.45708102]
[1717329521725,2.05007746,68223.0,68222.0,2.45708102]
[1717329521833,2.07707746,68223.0,68222.0,2.46008102]
[1717329522511,2.04107746,68223.0,68222.0,2.43308102]
[1717329522747,2.01407746,68223.0,68222.0,2.43008102]
[1717329522952,2.07807746,68223.0,68222.0,2.43308102]
[1717329523307,2.04107746,68223.0,68222.0,2.43308102]
[1717329523660,2.17807746,68223.0,68222.0,2.43308102]
[1717329524013,2.03227192,68223.0,68222.0,2.43308102]
[1717329524227,0.24558201,68223.0,68222.0,2.43308102]
[1717329524686,0.210578,68223.0,68222.0,2.43308102]
[1717329524926,0.173578,68223.0,68222.0,2.43308102]
[1717329525249,0.273578,68223.0,68222.0,2.43308102]
[1717329525452,0.091,68223.0,68222.0,2.43608102]
[1717329525665,0.064,68223.0,68222.0,3.23595892]
[1717329525873,0.027,68223.0,68222.0,3.38253892]
[1717329526074,0.054,68223.0,68222.0,3.53762936]
[1717329526282,0.09,68223.0,68222.0,3.53762936]
[1717329526500,0.036,68223.0,68222.0,3.38804936]
[1717329526703,0.01781193,68247.0,68222.0,3.38804936]
[1717329526704,0.1,68258.0,68236.0,0.00999999]
[1717329526933,0.43733372,68249.0,68238.0,0.07288895]
[1717329527146,0.43733372,68249.0,68237.0,0.8018779]
[1717329527147,0.1,68254.0,68239.0,0.14577791]
[1717329527362,0.1,68254.0,68239.0,0.1557779]
[1717329527567,0.19,68263.0,68239.0,0.1557779]
[1717329527568,0.1,68256.0,68239.0,0.14577791]
[1717329527722,0.146518,68251.0,68239.0,0.14577791]
[1717329527930,0.2,68260.0,68239.0,0.14577791]
[1717329527931,0.146506,68257.0,68242.0,0.00999999]
[1717329528339,0.146519,68251.0,68239.0,0.14577791]
[1717329528526,0.1,68258.0,68239.0,0.14577791]
[1717329528727,0.003,68254.0,68239.0,0.1877779]
[1717329529126,0.001,68257.0,68242.0,0.017]
[1717329529374,0.146522,68249.0,68239.0,0.1557779]
[1717329529581,0.146522,68249.0,68239.0,0.20577791]
[1717329529780,0.146532,68245.0,68239.0,0.06]
[1717329529992,0.146532,68245.0,68239.0,0.032]
[1717329530199,0.146538,68242.0,68239.0,0.032]
[1717329530628,0.146538,68242.0,68237.0,0.6461]
[1717329530846,0.146538,68242.0,68236.0,0.01468019]
[1717329531045,0.1,68244.0,68236.0,0.01468019]
[1717329531256,0.1,68244.0,68232.0,0.43397642]
[1717329531683,0.146541,68240.0,68232.0,0.43397642]
[1717329531893,0.146541,68240.0,68232.0,0.43365642]
[1717329532525,0.146541,68240.0,68239.0,0.028]